Cogmind - Beta 9.6 @@@ ROGUE MODE // 2020.04.24 @ 15:22:51 Player: TravelDemon Result: Destroyed by S-10 Pest with Light Assault Rifle Performance ------------- Evolutions (0) 0 Regions Visited (1) 200 Robots Destroyed (12) 60 Value Destroyed (359) 359 Prototype IDs (0) 0 Alien Tech Used (0) 0 Bonus (0) 0 TOTAL SCORE: 619 Bonus ------- None Cogmind --------- Core Integrity 0/250 Matter 300/300 Energy 125/125 System Corruption 0% Temperature Cool (50) Movement Treading (160) Location -10/Materials Parts ------- > --- POWER (1) -------- Light Ion Engine > --- PROPULSION (2) --- Light Treads > --- UTILITY (2) ------ Small Storage Unit Medium Storage Unit > --- WEAPON (2) ------- Medium Laser > --- INVENTORY (10) --- Light Treads Aluminum Leg Weight Redist. System Weight Redist. System Heavy Assault Rifle Heavy Assault Rifle Grenade Launcher Grenade Launcher Grenade Launcher Peak State ------------ > --- POWER ------------ Light Ion Engine > --- PROPULSION ------- Light Treads Aluminum Leg > --- UTILITY ---------- Small Storage Unit Medium Storage Unit > --- WEAPON ----------- Medium Laser Medium Laser > --- INVENTORY -------- Light Treads Aluminum Leg Weight Redist. System Weight Redist. System Heavy Assault Rifle Heavy Assault Rifle Grenade Launcher Grenade Launcher Grenade Launcher [Rating: 8] Favorites ----------- Power Ion Engine Engine Ion Engine Propulsion Light Treads Treads Light Treads Leg Aluminum Leg Utility Small Storage Unit Storage Small Storage Unit Weapon Medium Laser Energy Gun Medium Laser Ballistic Gun Assault Rifle Build | -11 -10 ------- Run | Scr Mat Slots Evolved . | . . Power . | . . Propulsion . | . . Utility . | . . Weapon . | . . Parts Attached 14 | 6 8 Power 2 | 1 1 Engine 2 | 1 1 Core . | . . Reactor . | . . Propulsion 5 | 2 3 Treads 3 | 2 1 Leg 2 | . 2 Wheel . | . . Hover . | . . Flight . | . . Utility 2 | 1 1 Device . | . . Storage 2 | 1 1 Processor . | . . Hackware . | . . Protection . | . . Artifact . | . . Weapon 5 | 2 3 Energy Gun 4 | 1 3 Energy Cannon . | . . Ballistic Gun 1 | 1 . Ballistic Cannon . | . . Launcher . | . . Special Weapon . | . . Impact Weapon . | . . Slashing Weapon . | . . Piercing Weapon . | . . Special Melee Weapon . | . . Unidentified Prototypes . | . . Parts Lost 7 | . 7 Power 1 | . 1 Propulsion 2 | . 2 Utility . | . . Weapon 4 | . 4 Highest Loss Streak 4 | . 4 Average Slot Usage (%) 87 | . 87 Engine 5 | . 5 Treads 15 | . 15 Leg 12 | . 12 Storage 26 | . 26 Energy Gun 20 | . 20 Ballistic Gun 5 | . 5 Naked Turns . | . . Heaviest Build 21 | 13 21 Greatest Support 40 | 40 40 Greatest Overweight (x) 4 | 4 1 Average Overweight (x) . | . . Largest Inventory Capacity 10 | 6 10 Average Capacity 9 | 5 9 Most Carried 9 | 1 9 Average Carried 5 | . 6 Final Capacity 10 | 6 10 Final Carried 9 | 1 9 Class Distribution -------------------- 100% | Mutant Dominant Class ---------------- Mutant | -10/Materials Resources | -11 -10 ----------- Run | Scr Mat Matter Collected 441 | 223 218 Remotely . | . . Salvage Created 424 | . 424 Parts 22 | . 22 Haulers Intercepted . | . . Recyclers Shooed . | . . Parts Field Recycled . | . . Retrieved Matter . | . . Parts Self-Destructed . | . . Prevented . | . . Kills | -11 -10 ------- Run | Scr Mat Combat Hostiles Destroyed 10 | . 10 Guns 10 | . 10 Classes Destroyed 4 | . 4 Worker 1 | . 1 Watcher 1 | . 1 Swarmer 1 | . 1 Grunt 9 | . 9 Best Kill Streak 4 | . 4 Combat Bots Only 3 | . 3 Max Kills in Single Turn 1 | . 1 Gunslinging . | . . Exploded . | . . Melee . | . . Uniques/NPCs Destroyed . | . . Combat | -11 -10 -------- Run | Scr Mat Damage Taken 1281 | . 1281 Core 253 | . 253 Absorbed by Shields . | . . Core Remaining (%) 100 | 100 . Volleys Fired 58 | . 58 Largest 2 | . 2 Hottest 100 | . 100 Shots Fired 82 | . 82 Gun 82 | . 82 Cannon . | . . Launcher . | . . Special . | . . Kinetic 42 | . 42 Thermal 40 | . 40 Explosive . | . . Electromagnetic . | . . Robot Hit Streak 12 | . 12 Robot Miss Streak 2 | . 2 Penetration Max . | . . Secondary Targets 2 | . 2 Max Gunslinging Chain 1 | . 1 Shots Hit Robots 58 | . 58 Core Hits 27 | . 27 Critical Hits . | . . Critical Kills . | . . Critical Parts Destroyed . | . . Melee Attacks . | . . Impact . | . . Slashing . | . . Piercing . | . . Sneak Attacks . | . . Combat Hostiles . | . . Follow-up Attacks . | . . Damage Inflicted 763 | . 763 Guns 763 | . 763 Cannons . | . . Explosions . | . . Melee . | . . Ramming . | . . Kinetic 373 | . 373 Thermal 390 | . 390 Explosive . | . . Electromagnetic . | . . Impact . | . . Slashing . | . . Piercing . | . . Highest Corruption . | . . Average Corruption . | . . Corruption Purged . | . . Overload Shots . | . . Overflow Damage . | . . Projectiles . | . . Explosions . | . . Melee . | . . Knockbacks . | . . Impact . | . . Kinetic . | . . Secondary . | . . Self-Inflicted Damage . | . . Shots . | . . Rammed . | . . Targets Rammed . | . . Kicked . | . . Crushed . | . . Highest Temperature 276 | . 276 Average Temperature 72 | . 72 Received Heat Transfer 573 | . 573 Effects 1 | . 1 Interference 1 | . 1 Siege Activations . | . . Robots Corrupted . | . . Combat Hostiles . | . . Parts Fried . | . . Impact Corruptions . | . . Robots Melted . | . . Combat Hostiles . | . . Parts Melted 2 | . 2 Heat Transferred 1088 | . 1088 Parts Sabotaged . | . . Parts Stolen . | . . Parts Stripped . | . . Power Chain Reactions . | . . Missiles Intercepted . | . . Alert | -11 -10 ------- Run | Scr Mat Peak Influence 225 | . 225 Average Influence 54 | . 58 Maximum Alert Level 1 | . 1 Low Security (%) 99 | 100 99 Level 1 . | . . Level 2 . | . . Level 3 . | . . Level 4 . | . . Level 5 . | . . High Security . | . . Max Security . | . . Squads Dispatched 1 | . 1 Investigation . | . . Extermination . | . . Reinforcement 1 | . 1 Assault . | . . Garrison . | . . Intercept . | . . Construction Impeded . | . . Haulers Reinforced . | . . Stealth | -11 -10 --------- Run | Scr Mat Distress Signals 3 | . 3 Communications Jammed . | . . Distress Signals . | . . Times Spotted 28 | . 28 Peak Tracking Total 7 | . 7 Tactical Retreats 4 | . 4 Traps | -11 -10 ------- Run | Scr Mat Traps Triggered 1 | . 1 Indirectly . | . . Trap Hack Attempts . | . . Triggered . | . . Disarmed . | . . Reprogrammed . | . . Reused . | . . Traps Extracted . | . . Installed . | . . Triggered . | . . Machines | -11 -10 ---------- Run | Scr Mat Machines Disabled . | . . Max in Single Turn . | . . Machines Sabotaged . | . . Garrisons Compromised . | . . Overloaded Fab Kills . | . . Fab Network Shutdowns . | . . Hacking | -11 -10 --------- Run | Scr Mat Machines Accessed . | . . Terminals . | . . Fabricators . | . . Repair Stations . | . . Recycling Units . | . . Scanalyzers . | . . Garrison Access . | . . Total Hacks . | . . Successful . | . . Failed . | . . Catastrophic . | . . Database Lockouts . | . . Manual . | . . Terminals . | . . Fabricators . | . . Repair Stations . | . . Recycling Units . | . . Scanalyzers . | . . Garrison Access . | . . Terminal Hacks . | . . Fabricator Hacks . | . . Repair Station Hacks . | . . Recycling Unit Hacks . | . . Scanalyzer . | . . Garrison Access Hacks . | . . Unauthorized Hacks . | . . Terminals . | . . Fabricators . | . . Repair Stations . | . . Recycling Units . | . . Scanalyzers . | . . Garrison Access . | . . Data Cores Recovered . | . . Used . | . . Hacking Detections . | . . Full Trace Events . | . . Feedback Events . | . . Feedback Blocked . | . . Robot Schematics Acquired . | . . Robots Built . | . . Matter . | . . Time . | . . Total Robot Build Rating . | . . Part Schematics Acquired . | . . Parts Built . | . . Matter . | . . Time . | . . Total Part Build Rating . | . . Parts Repaired . | . . Time . | . . Parts Recycled . | . . Recycled Matter . | . . Retrieved Matter . | . . Retrieved Components . | . . Parts Scanalyzed . | . . Part Schematics Acquired . | . . Parts Damaged . | . . Bothacking | -11 -10 ------------ Run | Scr Mat Used RIF Installer . | . . Robots Hacked . | . . Non-combat . | . . Combat . | . . Robot Hacks Applied . | . . Relay Couplers Released . | . . Robots Rewired . | . . Allies Hacked . | . . Hacks Repelled . | . . Allies | -11 -10 -------- Run | Scr Mat Total Allies . | . . Largest Group . | . . Highest-Rated Group . | . . Highest-Rated Ally . | . . Total Orders . | . . Ally Attacks . | . . Total Damage . | . . Kills . | . . Allies Corrupted . | . . Allies Melted . | . . Intel | -11 -10 ------- Run | Scr Mat Robot Analysis Total . | . . Derelict Logs Recovered . | . . Drone Launches . | . . Drone Recoveries . | . . Exploration | -11 -10 ------------- Run | Scr Mat Turns Passed 1021 | 70 951 Spaces Moved 573 | 45 528 Core 28 | 28 . Treads 393 | 17 376 Legs 152 | . 152 Wheels . | . . Hover . | . . Flight . | . . Fastest Speed 50 | 50 120 Average Speed 147 | 136 148 Slowest Speed 250 | 250 160 Overloaded Moves . | . . Propulsion Burnouts . | . . Robots Hopped . | . . Cave-ins Triggered . | . . Exploration Rate (%) 43 | 3 84 Regions Visited 1 Branch Regions . Pre-discovered Areas . | . . Known Exits Taken . | . . Unknown Exits Taken 1 | 1 . Scrap Searched . | . . Spaces Dug . | . . Terrain Destroyed . | . . Melee . | . . Projectile . | . . AOE . | . . Actions | -11 -10 --------- Run | Scr Mat Total 661 | 51 610 Wait 7 | . 7 Move 572 | 44 528 Hop . | . . Pick Up 8 | 1 7 Fast Attach 13 | 6 7 Attach 1 | . 1 Detach 2 | . 2 Swap . | . . Drop . | . . Fire 58 | . 58 Melee . | . . Ram . | . . Kick . | . . Crush . | . . Escape Stasis . | . . Rewire . | . . Trap . | . . Miscellaneous . | . . Route ------- -11/Scrapyard -10/Materials (discovered 3 exits: [*Mat] / [*Min x2]) History --------- Turn | Location | Event 18 | -11/Scrapyard | Discovered new exit (range 15) 71 | -11/Scrapyard | Entered Materials 304 | -10/Materials | Build established: Mutant 307 | -10/Materials | Discovered new exit (range 9) 403 | -10/Materials | Discovered new exit (range 16) 421 | -10/Materials | Core integrity fell below 50% 455 | -10/Materials | Lost 4 parts (1p1n2w) 463 | -10/Materials | Core integrity fell below 20% 529 | -10/Materials | Discovered new exit (range 3) 1022 | -10/Materials | Destroyed by S-10 Pest with Light Assault Rifle Last Messages --------------- 00530_ EMP Trap short circuited. 00530_ A bubble of electromagnetic force engulfs the area. 00618_ Acquired Lgt. Treads. 00688_ U-05 Engineer lays Concrete. 00751_ Connecting with Terminal... 00751_ Current location identified: Materials 00789_ K-01 Serf cleans the Terminal. 00800_ R-06 Scavenger collects Aluminum Leg. 00802_ K-01 Serf cleans the Terminal. 00803_ R-06 Scavenger collects Ion Engine. 00813_ K-01 Serf cleans the Terminal. 00825_ Acquired 10 matter. 00876_ K-01 Serf cleans the Hadron Collector. 00897_ Acquired Hvy. Assault Rifle. 00951_ Acquired Lgt. Ion Engine. 00983_ W-16 Scout destroyed. 00987_ Acquired 10 matter. 01008_ Med. Laser destroyed. 01018_ S-10 Pest destroyed. 01020_ Aluminum Leg destroyed. Map ----- +----------------------------------------------------+ | T ######### ##??????????#] # "" | | #???????# #??????############## "" | | ########???????# ######## T ## | | ##??????????????# # # # | | #???????????????# # """ # # | | #???????????????# # "R # """ """ + %/ | | ^ #?????########### # """ #???""" """ # / | | #?????# ## + #????"" """ # / | | #?????# """ ! ## # [ | #???? # | | ??????# """ ## #################### | | ??????# """ =!# ##### ####### | | ??????# % # | | ??????# %+% T < | | ??????# ! % # | | ??????# # #####" "## ###+ | | ??????# ! ## ##???#" !"| "## # | | ?????????########### #?????"""""""## # | | ????????????#= + ###########""#" # | | ????????????# # # ! # =%! + | | ????????????# """ !# # !! #" #/##""### | | ????????????# """ # # """ #= "#?# | | ????????????# """ # # """ # ! "#?# | | ????????????# # #%""" #* " ## | | ????????????######## + % # " ## | | ???????????????????# # *% #= " ##### | | ???????????????????# # @s # " #???? | | ???????????????????# =####+###### "##???? | | ???????????????????# *%#?# ?? +^ "#????? | | ???????????????????# !#?# ##?#####"""""###????? | | ???????????????????# #?# #???????######??????? | | ???????????????????# #?# #???????????????????? | | ??????????########## #?# #???????????????????? | | ??????????# ! ## #?# #???????????????????? | | ??????????# ## #?# #???????????????????? | | ??????????# ## ## ???????????????????? | | ??????????# """" # # ???????????????????? | | ??????????# """" # # ???????????????????? | | ??????????# """" + < # ???????????????????? | | ??????????# # # ???????????????????? | | ??????????# """" # #######??????????????????? | | ??????????# """" ## ########??????????????????? | | ??????????# """" [## # """ #??????????????????? | | ??????????# ##^ + """ #??????????????????? | | ??????????####+#####^^ # """ #??????????????????? | | ?????????????# # #??????????????????? | | ????????????## ##### ! #??????????????????? | | ????????????# #???# ! #??????????????????? | | ????????????#]] [[#???########??????????????????? | | ????????????#]][[[[#?????????????????????????????? | | ????????????########?????????????????????????????? | +----------------------------------------------------+ Best States ------------- Heat Dissipation 25 Energy Generation 10 Energy Capacity 250 Matter Stores 300 Matter Capacity 300 Sight Range 16 Terrain Scan Density 10 Evasion (%) 40 Recoil Reduction 2 Item Schematics ----------------- None Robot Schematics ------------------ None Fabricated ------------ Nothing Alien Tech Used ----------------- None Achievements -------------- None Challenges ------------ None Game ------ Seed DataStasisTearclaws Manual? 0 Play Time 00:10:25 Cumulative 25.4 hours Start 2020.04.24 @ 15:17:18 End 2020.04.24 @ 15:22:51 Sessions 1 Manual Loads 0 Difficulty Rogue Special Mode None Game No. 48 Rogue 46 Adventurer 0 Explorer 2 Win Type - Total 0 Types 0/0/0/0/0/0/0 Lore% 24 Gallery% 32 Achievement% 25 Wizard Run 0 Options --------- ASCII 0 Keyboard 1 Movement Numpad Keybinds 0 Fullscreen 2 Font 18/SmallcapsGlow Map View 76x50 Tactical HUD 1 Map Filters NONE Filters NONE Steam 1 RUN: aee9dfbc-ac49-4f6b-a890-fd57ba2ad532